fUSD/lending_fUSD_20241221
["ID","MTS","AMOUNT","RATE_DAILY","PERIOD"]
[346235699,1734795771357,500.0,0.00019726,2]
[346235700,1734795771534,590.06,0.0002,2]
[346235701,1734795771613,500.0,0.0002,2]
[346235702,1734795771815,536.56,0.00019178,2]
[346235703,1734795772054,536.56,0.00019452,2]
[346235704,1734795772332,536.56,0.00019726,2]
[346235705,1734795772478,1614.98,0.00019178,2]
[346235706,1734795772651,536.56,0.0002,2]
[346235707,1734795772778,1614.98,0.00019452,2]
[346235708,1734795773047,1614.98,0.00019726,2]
[346235709,1734795773314,1614.98,0.0002,2]
[346235710,1734795776772,618.87,0.00019178,2]
[346235711,1734795777014,618.87,0.00019452,2]
[346235712,1734795777258,618.87,0.00019726,2]
[346235713,1734795777517,618.87,0.0002,2]
[346235714,1734795778923,500.0,0.00019178,2]
[346235715,1734795779165,537.14459553,0.00019452,2]
[346235716,1734795781185,500.0,0.00019178,2]
[346235717,1734795781419,500.0,0.00019452,2]
[346235718,1734795781679,500.0,0.00019726,2]
[346235719,1734795781928,500.0,0.0002,2]
[346235720,1734795783822,500.0,0.00019178,2]
[346235721,1734795784114,500.0,0.00019452,2]
[346235722,1734795784376,500.0,0.00019726,2]
[346235723,1734795784636,500.0,0.0002,2]
[346235724,1734795785230,823.79,0.00019178,2]
[346235725,1734795785519,823.79,0.00019452,2]
[346235726,1734795785790,823.79,0.00019726,2]
[346235727,1734795786054,823.79,0.0002,2]
[346235728,1734795787032,1000.77,0.00019178,2]
[346235729,1734795787464,1000.77,0.00019452,2]
[346235730,1734795787750,1000.77,0.00019726,2]
[346235731,1734795788011,1000.77,0.0002,2]
[346235732,1734795790022,500.0,0.00019178,2]
[346235733,1734795790336,500.0,0.00019452,2]
[346235734,1734795790618,500.0,0.00019726,2]
[346235735,1734795790971,500.0,0.0002,2]
[346235736,1734795792675,500.0,0.00019178,2]
[346235737,1734795792929,500.0,0.00019452,2]
[346235738,1734795793219,500.0,0.00019726,2]
[346235739,1734795793283,500.0,0.00019178,2]
[346235740,1734795793480,500.0,0.0002,2]
[346235741,1734795793542,500.0,0.00019452,2]
[346235742,1734795793782,500.0,0.00019726,2]
[346235743,1734795794023,500.0,0.0002,2]
[346235744,1734795794399,1099.32954288,0.000196,2]
[346235745,1734795795596,841.62,0.00019178,2]
[346235746,1734795795850,841.62,0.00019452,2]
[346235747,1734795796154,841.62,0.00019726,2]
[346235748,1734795796433,841.62,0.0002,2]
[346235749,1734795799267,500.0,0.00019178,2]
[346235750,1734795799522,500.0,0.00019452,2]
[346235751,1734795799765,500.0,0.00019726,2]
[346235752,1734795800016,500.0,0.0002,2]
[346235753,1734795800085,500.0,0.00019178,2]
[346235754,1734795800304,500.0,0.00019452,2]
[346235755,1734795800626,374.90157723,0.00019726,2]
[346235756,1734795803771,1483.55,0.00019178,2]
[346235757,1734795804034,1483.55,0.00019452,2]
[346235758,1734795804312,1483.55,0.00019726,2]
[346235759,1734795804372,500.0,0.00019178,2]
[346235760,1734795804617,1483.55,0.0002,2]
[346235761,1734795804681,442.9817312,0.00019452,2]
[346235762,1734795804766,500.0,0.00019178,2]
[346235763,1734795805062,500.0,0.00019452,2]
[346235764,1734795805315,500.0,0.00019726,2]
[346235765,1734795805655,500.0,0.0002,2]
[346235766,1734795806613,500.0,0.00019178,2]
[346235767,1734795806875,500.0,0.00019452,2]
[346235768,1734795807135,506.84,0.00019726,2]
[346235769,1734795807821,298.0823466,0.0002,2]
[346235770,1734795810252,1000.0,0.00019039,2]
[346235771,1734795810566,1000.0,0.00019039,2]
[346235772,1734795811179,1000.0,0.00019039,2]
[346235773,1734795811332,500.0,0.00019178,2]
[346235774,1734795811437,1000.0,0.00019039,2]
[346235775,1734795811578,614.4811124,0.00019452,2]
[346235776,1734795811692,1000.0,0.00019039,2]
[346235777,1734795811944,1000.0,0.00019177,2]
[346235778,1734795812145,544.75,0.00019178,2]
[346235779,1734795812271,1000.0,0.00019399,2]
[346235780,1734795812402,544.75,0.00019452,2]
[346235781,1734795812547,1000.0,0.00019519,2]
[346235782,1734795812653,544.75,0.00019726,2]
[346235783,1734795812939,544.75,0.0002,2]
[346235784,1734795813301,500.0,0.00019178,2]
[346235785,1734795813677,500.0,0.00019452,2]
[346235786,1734795813933,500.0,0.00019726,2]
[346235787,1734795814252,500.0,0.0002,2]
[346235788,1734795814494,500.0,0.00019178,2]
[346235789,1734795814785,500.0,0.00019452,2]
[346235790,1734795815123,500.0,0.00019726,2]
[346235791,1734795815313,1000.0,0.00019759,2]
[346235792,1734795815427,500.0,0.0002,2]
[346235793,1734795815595,1000.0,0.00019977,2]
[346235794,1734795815878,1000.0,0.00019979,2]
[346235795,1734795816132,1000.0,0.00019979,2]
[346235796,1734795816406,1000.0,0.00019979,2]
[346235797,1734795816768,1000.0,0.00019979,2]
[346235798,1734795817239,1000.0,0.00019979,2]
[346235799,1734795817496,1000.0,0.00019979,2]
[346235800,1734795817750,1000.0,0.00019979,2]
[346235801,1734795817955,500.0,0.00019763,2]
[346235802,1734795818019,1000.0,0.00019979,2]
[346235803,1734795818303,1000.0,0.00019979,2]
[346235804,1734795818587,1000.0,0.00019979,2]
[346235805,1734795818828,1000.0,0.00019979,2]
[346235806,1734795819314,1000.0,0.00019979,2]
[346235807,1734795819386,552.91819479,0.00019979,2]
[346235808,1734795821309,662.54,0.00019178,2]
[346235809,1734795821585,662.54,0.00019452,2]
[346235810,1734795821836,662.54,0.00019726,2]
[346235811,1734795822104,662.54,0.0002,2]
[346235812,1734795826357,500.0,0.00019178,2]
[346235813,1734795826614,500.0,0.00019452,2]
[346235814,1734795826905,500.0,0.00019726,2]
[346235815,1734795827193,500.0,0.0002,2]
[346235816,1734795829261,500.0,0.00019178,2]
[346235817,1734795830568,500.0,0.00019452,2]
[346235818,1734795830850,500.0,0.00019726,2]
[346235819,1734795831099,500.0,0.0002,2]
[346235820,1734795831432,500.0,0.00019178,2]
[346235821,1734795831724,500.0,0.00019452,2]
[346235822,1734795831987,500.0,0.00019726,2]
[346235823,1734795832254,500.0,0.00019178,2]
[346235824,1734795832313,500.0,0.0002,2]
[346235825,1734795832562,500.0,0.00019452,2]
[346235826,1734795832863,500.0,0.00019726,2]
[346235827,1734795833124,500.0,0.0002,2]
[346235828,1734795838443,500.0,0.00019178,2]
[346235829,1734795839011,500.0,0.00019452,2]
[346235830,1734795839270,500.0,0.00019726,2]
[346235831,1734795839516,500.0,0.0002,2]
[346235832,1734795840013,898.19,0.00019178,2]
[346235833,1734795840289,898.19,0.00019452,2]
[346235834,1734795840636,898.19,0.00019726,2]
[346235835,1734795840834,898.19,0.0002,2]
[346235836,1734795848255,1121.83946055,0.000196,2]
[346235837,1734795849682,3459.6,0.00019178,2]
[346235838,1734795849890,500.0,0.00019178,2]
[346235839,1734795849981,3459.6,0.00019452,2]
[346235840,1734795850160,500.0,0.00019452,2]
[346235841,1734795850325,3459.6,0.00019726,2]
[346235842,1734795850429,500.0,0.00019726,2]
[346235843,1734795850593,3459.6,0.0002,2]
[346235844,1734795850697,500.0,0.0002,2]
[346235845,1734795851587,500.0,0.00019178,2]
[346235846,1734795851837,500.0,0.00019452,2]
[346235847,1734795852088,500.0,0.00019726,2]
[346235848,1734795852354,500.0,0.0002,2]
[346235849,1734795852774,298.0823466,0.0002,2]
[346235850,1734795852930,500.0,0.00019178,2]
[346235851,1734795853204,500.0,0.00019452,2]
[346235852,1734795853493,500.0,0.00019726,2]
[346235853,1734795853759,500.0,0.0002,2]
[346235854,1734795855992,500.0,0.00019178,2]
[346235855,1734795856254,500.0,0.00019452,2]
[346235856,1734795856665,500.0,0.00019726,2]
[346235857,1734795857111,500.0,0.0002,2]
[346235858,1734795858132,500.0,0.00019178,2]
[346235859,1734795858701,500.0,0.00019178,2]
[346235860,1734795858955,500.0,0.00019452,2]
[346235861,1734795859189,500.0,0.00019726,2]
[346235862,1734795859249,2215.71,0.00019178,2]
[346235863,1734795859475,2215.71,0.00019452,2]
[346235864,1734795859537,293.7,0.0002,2]
[346235865,1734795859758,2215.71,0.00019726,2]
[346235866,1734795859831,500.0,0.00019178,2]
[346235867,1734795860016,2215.71,0.0002,2]
[346235868,1734795860078,550.67961014,0.00019178,2]
[346235869,1734795860140,500.0,0.00019452,2]
[346235870,1734795860843,500.0,0.00019178,2]
[346235871,1734795861102,500.0,0.00019452,2]
[346235872,1734795861475,500.0,0.00019726,2]
[346235873,1734795861742,410.62,0.0002,2]
[346235874,1734795862044,500.0,0.00019178,2]
[346235875,1734795862415,500.0,0.00019452,2]
[346235876,1734795862714,500.0,0.00019726,2]
[346235877,1734795862967,500.0,0.0002,2]
[346235878,1734795863318,500.0,0.00019178,2]
[346235879,1734795863580,500.0,0.00019452,2]
[346235880,1734795863726,500.0,0.00019178,2]
[346235881,1734795863855,527.20750504,0.00019726,2]
[346235882,1734795863992,500.0,0.00019452,2]
[346235883,1734795864268,500.0,0.00019726,2]
[346235884,1734795864518,500.0,0.0002,2]
[346235885,1734795864844,150.0,0.00019798,2]
[346235886,1734795865047,150.0,0.00019857,2]
[346235887,1734795865281,150.0,0.00019844,2]
[346235888,1734795865685,541.29,0.00017509,2]
[346235889,1734795865793,500.0,0.00019178,2]
[346235890,1734795865909,541.29,0.00019773,2]
[346235891,1734795866384,500.0,0.00019452,2]
[346235892,1734795866627,500.0,0.00019726,2]
[346235893,1734795866885,500.0,0.0002,2]
[346235894,1734795868060,593.46,0.00019178,2]
[346235895,1734795868316,593.46,0.00019452,2]
[346235896,1734795868582,593.46,0.00019726,2]
[346235897,1734795868855,593.46,0.0002,2]
[346235898,1734795868918,504.4666045,0.00019178,2]
[346235899,1734795870160,1029.29,0.00019178,2]
[346235900,1734795870428,1029.29,0.00019452,2]
[346235901,1734795870715,1029.29,0.00019726,2]
[346235902,1734795870994,1029.29,0.0002,2]
[346235903,1734795871058,500.0,0.00019178,2]
[346235904,1734795872606,500.0,0.00019178,2]
[346235905,1734795872970,500.0,0.00019178,2]
[346235906,1734795874051,673.4,0.00019178,2]
[346235907,1734795874324,673.4,0.00019452,2]
[346235908,1734795874585,500.0,0.00019178,2]
[346235909,1734795874645,673.4,0.00019726,2]
[346235910,1734795874853,673.4,0.0002,2]
[346235911,1734795875724,503.41558833,0.00019178,2]
[346235912,1734795878234,500.0,0.00019178,2]
[346235913,1734795878336,500.0,0.00019178,2]
[346235914,1734795878512,500.0,0.00019178,2]
[346235915,1734795878599,500.0,0.00019452,2]
[346235916,1734795878665,1468.83,0.00019178,2]
[346235917,1734795878793,500.0,0.00019452,2]
[346235918,1734795878859,500.0,0.00019726,2]
[346235919,1734795878926,1468.83,0.00019452,2]
[346235920,1734795879108,307.36,0.00019726,2]
[346235921,1734795879185,1468.83,0.00019726,2]
[346235922,1734795879246,500.0,0.0002,2]
[346235923,1734795879439,1468.83,0.0002,2]
[346235924,1734795880625,500.0,0.00019178,2]
[346235925,1734795880797,676.8,0.0001942,2]
[346235926,1734795880894,500.0,0.00019452,2]
[346235927,1734795881150,500.0,0.00019726,2]
[346235928,1734795881413,500.0,0.0002,2]
[346235930,1734795882100,500.0,0.00019178,2]
[346235931,1734795882474,3017.47,0.00019178,2]
[346235932,1734795882725,3017.47,0.00019452,2]
[346235933,1734795883005,153.0,0.00019385,2]
[346235934,1734795883065,3017.47,0.00019726,2]
[346235935,1734795883240,153.0,0.00019385,2]
[346235936,1734795883310,3017.47,0.0002,2]
[346235937,1734795883436,153.0,0.00019385,2]
[346235938,1734795883652,153.0,0.00019385,2]
[346235939,1734795883967,153.0,0.00019385,2]
[346235940,1734795884156,500.0,0.00019178,2]
[346235941,1734795884308,153.0,0.00019385,2]
[346235942,1734795884541,153.0,0.00019385,2]
[346235943,1734795884868,153.0,0.00019385,2]
[346235944,1734795885082,153.0,0.00019385,2]
[346235945,1734795885211,500.0,0.00019178,2]
[346235946,1734795885302,153.0,0.00019385,2]
[346235947,1734795885365,500.0,0.00019178,2]
[346235948,1734795885479,500.0,0.00019452,2]
[346235949,1734795885890,500.0,0.00019178,2]
[346235950,1734795886295,500.0,0.00019178,2]
[346235951,1734795886355,500.0,0.00019178,2]
[346235952,1734795886593,500.0,0.00019452,2]
[346235953,1734795886861,500.0,0.00019726,2]
[346235954,1734795887230,500.0,0.0002,2]
[346235955,1734795888805,500.0,0.00019178,2]
[346235956,1734795890365,500.0,0.00019178,2]
[346235957,1734795890789,500.0,0.00019178,2]
[346235958,1734795891075,500.0,0.00019452,2]
[346235959,1734795891357,500.0,0.00019726,2]
[346235960,1734795891610,500.0,0.0002,2]
[346235961,1734795893321,966.58,0.00019406,2]
[346235962,1734795894321,153.0,0.00019385,2]
[346235963,1734795894550,153.0,0.00019385,2]
[346235964,1734795894789,153.0,0.00019385,2]
[346235965,1734795894969,153.0,0.00019385,2]
[346235966,1734795895273,1474.54,0.00019178,2]
[346235967,1734795895588,1474.54,0.00019452,2]
[346235968,1734795895742,153.0,0.00019385,2]
[346235969,1734795895959,153.0,0.00019385,2]
[346235970,1734795896022,1474.54,0.00019726,2]
[346235971,1734795896185,153.0,0.00019385,2]
[346235972,1734795896257,1474.54,0.0002,2]
[346235973,1734795896385,153.0,0.00019385,2]
[346235974,1734795896592,153.0,0.00019385,2]
[346235975,1734795896886,153.0,0.00019385,2]
[346235976,1734795897214,153.0,0.00019385,2]
[346235977,1734795897440,153.0,0.00019385,2]
[346235978,1734795897668,153.0,0.00019385,2]
[346235979,1734795897887,153.0,0.00019385,2]
[346235980,1734795898282,153.0,0.00019385,2]
[346235981,1734795898921,3107.87,0.00019178,2]
[346235982,1734795899173,616.16,0.00019178,2]
[346235983,1734795899422,616.16,0.00019452,2]
[346235984,1734795899709,616.16,0.00019726,2]
[346235985,1734795899977,616.16,0.0002,2]
[346235986,1734795900077,3107.87,0.00019452,2]
[346235987,1734795900142,500.24050612,0.00019178,2]
[346235988,1734795900339,3107.87,0.00019726,2]
[346235989,1734795900642,3107.87,0.0002,2]
[346235990,1734795901378,500.0,0.00019178,2]
[346235991,1734795901460,921.33,0.00019178,2]
[346235992,1734795901631,500.0,0.00019452,2]
[346235993,1734795901759,921.33,0.00019452,2]
[346235994,1734795901915,500.0,0.00019726,2]
[346235995,1734795902101,921.33,0.00019726,2]
[346235996,1734795902174,500.0,0.0002,2]
[346235997,1734795902374,921.33,0.0002,2]
[346235998,1734795903298,150.0,0.0002,2]
[346235999,1734795904489,500.0,0.00019178,2]
[346236000,1734795904646,500.0,0.00019178,2]
[346236001,1734795905067,1155.13103,0.0002,2]
[346236002,1734795905711,500.0,0.00019178,2]
[346236003,1734795905991,407.84,0.00019452,2]
[346236004,1734795906197,200.0,0.0002,2]
[346236005,1734795906914,500.50877489,0.00019178,2]
[346236006,1734795908624,500.0,0.00019178,2]
[346236007,1734795908745,500.0,0.00019178,2]
[346236008,1734795908902,500.0,0.00019452,2]
[346236009,1734795909001,500.0,0.00019452,2]
[346236010,1734795909153,500.0,0.00019726,2]
[346236011,1734795909276,500.0,0.00019726,2]
[346236012,1734795909420,500.0,0.0002,2]
[346236013,1734795909563,500.0,0.0002,2]
[346236014,1734795909956,500.0,0.00019178,2]
[346236015,1734795910263,500.0,0.00019452,2]
[346236016,1734795910547,356.56652952,0.00019726,2]
[346236017,1734795912729,500.0,0.00019178,2]
[346236018,1734795912805,2881.15,0.00019401,2]
[346236019,1734795912878,634.0,0.0001984,2]
[346236020,1734795913201,500.0,0.00019178,2]
[346236021,1734795913836,500.0,0.00019452,2]
[346236022,1734795914140,500.0,0.00019726,2]
[346236023,1734795914402,500.0,0.0002,2]
[346236024,1734795914736,500.0,0.00019178,2]
[346236025,1734795915130,500.0,0.00019178,2]
[346236026,1734795915579,1206.67,0.00019178,2]
[346236027,1734795915706,500.0,0.00019178,2]
[346236028,1734795915796,1100.0,0.00019177,2]
[346236029,1734795915893,500.0,0.00019178,2]
[346236030,1734795916190,1206.67,0.00019452,2]
[346236031,1734795916525,1206.67,0.00019726,2]
[346236032,1734795916792,1206.67,0.0002,2]
[346236033,1734795917312,500.0,0.00019178,2]
[346236034,1734795917786,1843.62,0.0002,2]
[346236035,1734795918283,1265.0,0.0001984,2]
[346236036,1734795918889,503.82177462,0.00019178,2]
[346236037,1734795919235,500.0,0.00019178,2]
[346236038,1734795922901,500.0,0.00019178,2]
[346236039,1734795922969,2010.0,0.0001984,2]
[346236040,1734795923033,500.0,0.00019178,2]
[346236041,1734795923111,693.186,0.00019,2]
[346236042,1734795923226,500.0,0.00019452,2]
[346236043,1734795923367,500.0,0.00019178,2]
[346236044,1734795923500,528.08,0.00019726,2]
[346236045,1734795923660,511.58223437,0.00019452,2]
[346236046,1734795924894,500.0,0.00019178,2]
[346236047,1734795925107,228.42,0.00019452,2]
[346236048,1734795926709,500.0,0.00019178,2]
[346236049,1734795926861,500.0,0.00019452,2]
[346236050,1734795926948,500.0,0.00019726,2]
[346236051,1734795927208,500.0,0.0002,2]
[346236052,1734795927324,500.0,0.00019178,2]
[346236053,1734795927631,500.0,0.00019452,2]
[346236054,1734795929628,500.0,0.00019178,2]
[346236055,1734795930965,13754.0,0.0001984,2]
[346236056,1734795931720,500.0,0.00019178,2]
[346236057,1734795931985,500.0,0.00019452,2]
[346236058,1734795932239,500.0,0.00019726,2]
[346236059,1734795932535,500.0,0.0002,2]
[346236060,1734795934345,500.0,0.00019178,2]
[346236061,1734795934973,1170.0,0.0001984,2]
[346236062,1734795935430,500.0,0.00019178,2]
[346236063,1734795935693,534.66989846,0.00019452,2]
[346236064,1734795936634,500.0,0.00019178,2]
[346236065,1734795937185,643.93,0.00019178,2]
[346236066,1734795937444,643.93,0.00019452,2]
[346236067,1734795937703,643.93,0.00019726,2]
[346236068,1734795937958,643.93,0.0002,2]
[346236069,1734795942719,500.0,0.00019178,2]
[346236070,1734795942776,408.21823232,0.00019744,2]
[346236071,1734795942860,500.0,0.00019178,2]
[346236072,1734795943067,500.0,0.00019452,2]
[346236073,1734795943269,500.0,0.00019452,2]
[346236074,1734795943337,500.0,0.00019726,2]
[346236075,1734795943481,500.0,0.00019178,2]
[346236076,1734795943544,500.0,0.00019726,2]
[346236077,1734795943605,500.0,0.0002,2]
[346236078,1734795943735,500.0,0.00019452,2]
[346236079,1734795943797,500.0,0.0002,2]
[346236080,1734795943977,500.0,0.00019726,2]
[346236081,1734795944291,500.0,0.0002,2]
[346236082,1734795945271,633.0,0.0001984,2]
[346236083,1734795945896,582.93,0.00019178,2]
[346236084,1734795946190,582.93,0.00019452,2]
[346236085,1734795946458,582.93,0.00019726,2]
[346236086,1734795946722,582.93,0.0002,2]
[346236087,1734795946913,1000.0,0.00019178,2]
[346236088,1734795947151,1000.0,0.00019452,2]
[346236089,1734795947390,1000.0,0.00019726,2]
[346236090,1734795947659,1000.0,0.0002,2]
[346236091,1734795947943,1787.06935,0.0002,2]
[346236092,1734795950819,150.0,0.0001984,2]
[346236093,1734795952244,500.0,0.00019178,2]
[346236094,1734795952512,500.0,0.00019452,2]
[346236095,1734795952819,500.0,0.00019726,2]
[346236096,1734795953096,500.0,0.0002,2]
[346236097,1734795953384,2806.18,0.00019178,2]
[346236098,1734795953645,2806.18,0.00019452,2]
[346236099,1734795953933,2806.18,0.00019726,2]
[346236100,1734795954227,2806.18,0.0002,2]
[346236101,1734795954287,526.68776141,0.00019178,2]
[346236102,1734795954424,565.0,0.0001984,2]
[346236103,1734795954763,500.0,0.00019726,2]
[346236104,1734795955035,708.43,0.00019178,2]
[346236105,1734795955324,708.43,0.00019452,2]
[346236106,1734795955611,708.43,0.00019726,2]
[346236107,1734795955886,708.43,0.0002,2]
[346236108,1734795956739,500.0,0.00019178,2]
[346236109,1734795956801,255.97,0.00019616,30]
[346236110,1734795956999,500.0,0.00019452,2]
[346236111,1734795957256,500.0,0.00019726,2]
[346236112,1734795958035,500.0,0.00019178,2]
[346236113,1734795958319,500.0,0.00019452,2]
[346236114,1734795958432,500.0,0.00019178,2]
[346236115,1734795958574,500.0,0.00019726,2]
[346236116,1734795958688,500.0,0.00019452,2]
[346236117,1734795958822,500.0,0.0002,2]
[346236118,1734795958954,516.22,0.00019726,2]
[346236119,1734795960037,1101.0,0.0001984,2]
[346236120,1734795960293,500.0,0.0002,2]
[346236121,1734795961352,782.78,0.00019178,2]
[346236122,1734795961652,782.78,0.00019452,2]
[346236123,1734795961895,782.78,0.00019726,2]
[346236124,1734795962140,782.78,0.0002,2]
[346236125,1734795962200,502.54850871,0.00019178,2]
[346236126,1734795964253,500.0,0.00019178,2]
[346236127,1734795964383,500.0,0.0002,2]
[346236128,1734795964487,764.73,0.00019178,2]
[346236129,1734795964611,500.0,0.00019452,2]
[346236130,1734795964743,764.73,0.00019452,2]
[346236131,1734795964987,764.73,0.00019726,2]
[346236132,1734795965299,764.73,0.0002,2]
[346236133,1734795967022,500.0,0.00019178,2]
[346236134,1734795967294,500.0,0.00019452,2]
[346236135,1734795967583,534.84,0.00019726,2]
[346236136,1734795967689,500.0,0.00019178,2]
[346236137,1734795967938,500.0,0.00019452,2]
[346236138,1734795968181,500.0,0.00019726,2]
[346236139,1734795968426,500.0,0.0002,2]
[346236140,1734795969187,500.0,0.00019178,2]
[346236141,1734795969501,500.0,0.00019452,2]
[346236142,1734795969782,500.0,0.00019726,2]
[346236143,1734795970210,500.0,0.0002,2]
[346236144,1734795971998,511.42,0.00019178,2]
[346236145,1734795972221,500.0,0.00019178,2]
[346236146,1734795972497,500.0,0.00019178,2]
[346236147,1734795972560,500.0,0.00019452,2]
[346236148,1734795972799,500.0,0.00019452,2]
[346236149,1734795972857,500.0,0.00019726,2]
[346236150,1734795973066,500.0,0.00019726,2]
[346236151,1734795973135,500.0,0.0002,2]
[346236152,1734795973456,1095.10949498,0.00019331,2]
[346236153,1734795973538,500.0,0.0002,2]
[346236154,1734795975840,500.0,0.00019178,2]
[346236155,1734795976098,500.0,0.00019452,2]
[346236156,1734795976465,1157.79,0.00019178,2]
[346236157,1734795976882,1157.79,0.00019452,2]
[346236158,1734795976950,500.0,0.00019178,2]
[346236159,1734795977048,500.0,0.00019452,2]
[346236160,1734795977111,1157.79,0.00019726,2]
[346236161,1734795977308,500.0,0.00019726,2]
[346236162,1734795977375,1157.79,0.0002,2]
[346236163,1734795977588,500.0,0.0002,2]
[346236164,1734795978491,1222.68,0.00019178,2]
[346236165,1734795978754,1222.68,0.00019452,2]
[346236166,1734795978856,500.0,0.00019178,2]
[346236167,1734795979018,1222.68,0.00019726,2]
[346236168,1734795979279,1222.68,0.0002,2]
[346236169,1734795979364,945.02,0.00019178,2]
[346236170,1734795979504,500.0,0.00019178,2]
[346236171,1734795979668,945.02,0.00019452,2]
[346236172,1734795979951,945.02,0.00019726,2]
[346236173,1734795980401,945.02,0.0002,2]
[346236174,1734795981832,1898.0,0.0001984,2]
[346236175,1734795983052,500.0,0.00019178,2]
[346236176,1734795983476,968.05,0.00019178,2]
[346236177,1734795983751,968.05,0.00019452,2]
[346236178,1734795984071,968.05,0.00019726,2]
[346236179,1734795984355,968.05,0.0002,2]
[346236180,1734795984450,500.0,0.00019178,2]
[346236181,1734795984704,500.0,0.00019452,2]
[346236182,1734795984765,500.0,0.00019178,2]
[346236183,1734795984954,500.0,0.00019726,2]
[346236184,1734795985225,532.18,0.0002,2]
[346236185,1734795985305,869.91,0.00019178,2]
[346236186,1734795985602,869.91,0.00019452,2]
[346236187,1734795985866,869.91,0.00019726,2]
[346236188,1734795986126,869.91,0.0002,2]
[346236189,1734795987173,500.0,0.00019178,2]
[346236190,1734795987425,500.0,0.00019452,2]
[346236191,1734795987736,500.0,0.00019726,2]
[346236192,1734795987955,860.27,0.00019178,2]
[346236193,1734795988022,500.0,0.0002,2]
[346236194,1734795988218,860.27,0.00019452,2]
[346236195,1734795988462,860.27,0.00019726,2]
[346236196,1734795988739,860.27,0.0002,2]
[346236197,1734795990668,500.0,0.00019178,2]
[346236198,1734795990743,962.6092,0.0002,2]
[346236199,1734795990799,500.0,0.00019178,2]